[Event "Titled Tuesday Blitz January 03 Early 2023"]
[White "Bazarov, Konstantin"]
[Black "Wagner, Dennis"]
[WhiteFideId "4137000"]
[BlackFideId "24650684"]
[WhiteElo "2235"]
[BlackElo "2595"]
[Result "1-0"]
[Round "04"]
[TimeControl "180+2"]
[Date "2023.01.03"]
[WhiteClock "0:00:20"]
[BlackClock "0:00:04"]

1. c4 {[%clk 0:03:00]}  e6 {[%clk 0:02:57]} 2. d4 {[%clk 0:02:59]}  d5 {[%clk 0:02:57]} 3. Nc3 {[%clk 0:02:59]}  Be7 {[%clk 0:02:53]} 4. Nf3 {[%clk 0:02:59]}  Nf6 {[%clk 0:02:53]} 5. Bg5 {[%clk 0:02:57]}  h6 {[%clk 0:02:52]} 6. Bh4 {[%clk 0:02:57]}  O-O {[%clk 0:02:52]} 7. e3 {[%clk 0:02:57]}  b6 {[%clk 0:02:51]} 8. Rc1 {[%clk 0:02:54]}  Bb7 {[%clk 0:02:40]} 9. Bxf6 {[%clk 0:02:53]}  Bxf6 {[%clk 0:02:41]} 10. cxd5 {[%clk 0:02:53]}  exd5 {[%clk 0:02:41]} 11. b4 {[%clk 0:02:51]}  c6 {[%clk 0:02:32]} 12. Be2 {[%clk 0:02:47]}  Nd7 {[%clk 0:02:29]} 13. O-O {[%clk 0:02:45]}  Re8 {[%clk 0:02:26]} 14. Qb3 {[%clk 0:02:44]}  b5 {[%clk 0:01:56]} 15. a4 {[%clk 0:02:31]}  a6 {[%clk 0:01:56]} 16. a5 {[%clk 0:02:30]}  Be7 {[%clk 0:01:47]} 17. Rb1 {[%clk 0:02:23]}  Bd6 {[%clk 0:01:47]} 18. Bd3 {[%clk 0:02:18]}  Nf6 {[%clk 0:01:43]} 19. h3 {[%clk 0:02:08]}  Qe7 {[%clk 0:01:30]} 20. Nd2 {[%clk 0:02:04]}  Rad8 {[%clk 0:01:23]} 21. Rfe1 {[%clk 0:02:02]}  Bb8 {[%clk 0:01:08]} 22. Bf1 {[%clk 0:01:54]}  Qc7 {[%clk 0:01:02]} 23. g3 {[%clk 0:01:51]}  h5 {[%clk 0:00:53]} 24. h4 {[%clk 0:01:46]}  Bc8 {[%clk 0:00:52]} 25. Nf3 {[%clk 0:01:42]}  Bf5 {[%clk 0:00:46]} 26. Rbc1 {[%clk 0:01:40]}  Qd7 {[%clk 0:00:47]} 27. Bg2 {[%clk 0:01:37]}  Bh3 {[%clk 0:00:45]} 28. Bh1 {[%clk 0:01:34]}  Bf5 {[%clk 0:00:37]} 29. Ng5 {[%clk 0:01:26]}  Ng4 {[%clk 0:00:35]} 30. Ne2 {[%clk 0:01:17]}  Re7 {[%clk 0:00:28]} 31. Qc3 {[%clk 0:01:16]}  Rc8 {[%clk 0:00:23]} 32. Bg2 {[%clk 0:01:13]}  f6 {[%clk 0:00:22]} 33. Nf3 {[%clk 0:01:12]}  Kh7 {[%clk 0:00:21]} 34. Nh2 {[%clk 0:01:08]}  Qd6 {[%clk 0:00:14]} 35. Nf4 {[%clk 0:01:03]}  Nxh2 {[%clk 0:00:13]} 36. Kxh2 {[%clk 0:01:02]}  Bg4 {[%clk 0:00:13]} 37. f3 {[%clk 0:01:01]}  Bd7 {[%clk 0:00:12]} 38. Nxh5 {[%clk 0:00:58]}  g6 {[%clk 0:00:12]} 39. Nf4 {[%clk 0:00:57]}  Kg7 {[%clk 0:00:12]} 40. Qc5 {[%clk 0:00:52]}  Rh8 {[%clk 0:00:11]} 41. Qxd6 {[%clk 0:00:34]}  Bxd6 {[%clk 0:00:12]} 42. Rb1 {[%clk 0:00:33]}  g5 {[%clk 0:00:12]} 43. Ne2 {[%clk 0:00:30]}  gxh4 {[%clk 0:00:12]} 44. f4 {[%clk 0:00:30]}  hxg3+ {[%clk 0:00:12]} 45. Kxg3 {[%clk 0:00:30]}  Rxe3+ {[%clk 0:00:13]} 46. Kf2 {[%clk 0:00:29]}  Rhe8 {[%clk 0:00:14]} 47. Bf3 {[%clk 0:00:29]}  R8e7 {[%clk 0:00:12]} 48. Rg1+ {[%clk 0:00:28]}  Kf8 {[%clk 0:00:12]} 49. Rh1 {[%clk 0:00:27]}  Bf5 {[%clk 0:00:12]} 50. Rh8+ {[%clk 0:00:25]}  Kg7 {[%clk 0:00:12]} 51. Rbh1 {[%clk 0:00:24]}  Bxb4 {[%clk 0:00:11]} 52. Ng3 {[%clk 0:00:23]}  Bd3 {[%clk 0:00:10]} 53. f5 {[%clk 0:00:23]}  Be1+ {[%clk 0:00:04]} 54. Kg2 {[%clk 0:00:21]}  Rxf3 {[%clk 0:00:04]} 55. R1h7# {[%clk 0:00:20]} 1-0


[Site "https://www.chess.com"]

[Event "Titled Tuesday Blitz January 03 Early 2023"]
[White "Bayramov, Zaur"]
[Black "Cappai, Davide"]
[WhiteFideId "13405080"]
[BlackFideId "813338"]
[WhiteElo "2276"]
[BlackElo "2140"]
[Result "1-0"]
[Round "04"]
[TimeControl "180+2"]
[Date "2023.01.03"]
[WhiteClock "0:00:36"]
[BlackClock "0:00:12"]

1. c4 {[%clk 0:03:00]}  g6 {[%clk 0:02:59]} 2. Nc3 {[%clk 0:03:01]}  c5 {[%clk 0:02:59]} 3. g3 {[%clk 0:03:01]}  Bg7 {[%clk 0:02:59]} 4. Bg2 {[%clk 0:03:01]}  Nc6 {[%clk 0:03:00]} 5. d3 {[%clk 0:03:02]}  Nh6 {[%clk 0:02:59]} 6. Bd2 {[%clk 0:03:01]}  d6 {[%clk 0:02:57]} 7. a3 {[%clk 0:03:01]}  a5 {[%clk 0:02:57]} 8. Nf3 {[%clk 0:03:00]}  O-O {[%clk 0:02:57]} 9. O-O {[%clk 0:03:00]}  f5 {[%clk 0:02:53]} 10. Rb1 {[%clk 0:02:58]}  Nf7 {[%clk 0:02:48]} 11. Ne1 {[%clk 0:02:57]}  Bd7 {[%clk 0:02:37]} 12. Nc2 {[%clk 0:02:57]}  e6 {[%clk 0:02:37]} 13. b4 {[%clk 0:02:56]}  axb4 {[%clk 0:02:21]} 14. axb4 {[%clk 0:02:56]}  cxb4 {[%clk 0:02:22]} 15. Nxb4 {[%clk 0:02:55]}  Nxb4 {[%clk 0:02:22]} 16. Rxb4 {[%clk 0:02:55]}  Bc6 {[%clk 0:02:23]} 17. Qb3 {[%clk 0:02:48]}  Ra7 {[%clk 0:02:07]} 18. Rb6 {[%clk 0:02:46]}  Qd7 {[%clk 0:01:53]} 19. Rb1 {[%clk 0:02:45]}  Nd8 {[%clk 0:01:40]} 20. e3 {[%clk 0:02:36]}  Rf7 {[%clk 0:01:39]} 21. d4 {[%clk 0:02:35]}  Bxg2 {[%clk 0:01:38]} 22. Kxg2 {[%clk 0:02:35]}  h5 {[%clk 0:01:32]} 23. h4 {[%clk 0:02:31]}  Bf8 {[%clk 0:01:28]} 24. d5 {[%clk 0:02:22]}  e5 {[%clk 0:01:26]} 25. c5 {[%clk 0:02:20]}  f4 {[%clk 0:01:22]} 26. exf4 {[%clk 0:02:16]}  exf4 {[%clk 0:01:21]} 27. c6 {[%clk 0:02:06]}  Qg4 {[%clk 0:01:17]} 28. Qd1 {[%clk 0:01:37]}  f3+ {[%clk 0:00:50]} 29. Kh2 {[%clk 0:01:37]}  Qf5 {[%clk 0:00:51]} 30. Bf4 {[%clk 0:01:22]}  Ra3 {[%clk 0:00:34]} 31. Qxf3 {[%clk 0:01:02]}  bxc6 {[%clk 0:00:34]} 32. dxc6 {[%clk 0:01:01]}  Qc5 {[%clk 0:00:34]} 33. R6b3 {[%clk 0:00:55]}  Rxb3 {[%clk 0:00:30]} 34. Rxb3 {[%clk 0:00:56]}  Qxc6 {[%clk 0:00:30]} 35. Nd5 {[%clk 0:00:53]}  Kh7 {[%clk 0:00:20]} 36. Rb8 {[%clk 0:00:51]}  Qd7 {[%clk 0:00:19]} 37. Qe4 {[%clk 0:00:48]}  Bg7 {[%clk 0:00:15]} 38. Be3 {[%clk 0:00:44]}  Qe6 {[%clk 0:00:14]} 39. Qd3 {[%clk 0:00:42]}  Nc6 {[%clk 0:00:14]} 40. Rb6 {[%clk 0:00:41]}  Ne5 {[%clk 0:00:14]} 41. Qb3 {[%clk 0:00:38]}  Ng4+ {[%clk 0:00:12]} 42. Kg2 {[%clk 0:00:36]}  Nxe3+ {[%clk 0:00:13]} 43. Nxe3 {[%clk 0:00:37]}  Qxb3 {[%clk 0:00:13]} 44. Rxb3 {[%clk 0:00:38]}  Bd4 {[%clk 0:00:12]} 45. Nd1 {[%clk 0:00:37]}  Bc5 {[%clk 0:00:13]} 46. Rd3 {[%clk 0:00:37]}  Kg7 {[%clk 0:00:12]} 47. f4 {[%clk 0:00:37]}  Kf6 {[%clk 0:00:13]} 48. Nc3 {[%clk 0:00:36]}  Ke6 {[%clk 0:00:13]} 49. Kf3 {[%clk 0:00:36]}  Ra7 {[%clk 0:00:12]} 50. Ne4 {[%clk 0:00:35]}  Ra3 {[%clk 0:00:12]} 51. Nxc5+ {[%clk 0:00:35]}  dxc5 {[%clk 0:00:12]} 52. Rxa3 {[%clk 0:00:36]} 1-0


[Site "https://www.chess.com"]

[Event "Titled Tuesday Blitz January 03 Early 2023"]
[White "Ilkhomi, Jaloliddin"]
[Black "Fiorito, Joaquin"]
[WhiteFideId "14700948"]
[BlackFideId "180173"]
[WhiteElo "1997"]
[BlackElo "2405"]
[Result "1/2-1/2"]
[Round "04"]
[TimeControl "180+2"]
[Date "2023.01.03"]
[WhiteClock "0:00:09"]
[BlackClock "0:00:11"]

1. d4 {[%clk 0:03:00]}  Nf6 {[%clk 0:03:00]} 2. Nf3 {[%clk 0:02:58]}  d5 {[%clk 0:03:00]} 3. Bf4 {[%clk 0:02:58]}  c5 {[%clk 0:02:59]} 4. e3 {[%clk 0:02:59]}  Nc6 {[%clk 0:02:59]} 5. c3 {[%clk 0:02:59]}  Qb6 {[%clk 0:02:59]} 6. Qc2 {[%clk 0:02:59]}  g6 {[%clk 0:02:56]} 7. Nbd2 {[%clk 0:02:57]}  Bf5 {[%clk 0:02:55]} 8. Qb3 {[%clk 0:02:58]}  c4 {[%clk 0:02:54]} 9. Qxb6 {[%clk 0:02:58]}  axb6 {[%clk 0:02:55]} 10. a3 {[%clk 0:02:58]}  b5 {[%clk 0:02:54]} 11. Rc1 {[%clk 0:02:59]}  Bg7 {[%clk 0:02:45]} 12. Be2 {[%clk 0:02:59]}  h6 {[%clk 0:02:39]} 13. Bd1 {[%clk 0:02:57]}  g5 {[%clk 0:02:38]} 14. Bg3 {[%clk 0:02:55]}  Ne4 {[%clk 0:02:31]} 15. Nxe4 {[%clk 0:02:51]}  Bxe4 {[%clk 0:02:32]} 16. Bc2 {[%clk 0:02:50]}  Bxc2 {[%clk 0:02:30]} 17. Rxc2 {[%clk 0:02:51]}  b4 {[%clk 0:02:19]} 18. cxb4 {[%clk 0:02:07]}  Nxb4 {[%clk 0:02:19]} 19. Rd2 {[%clk 0:02:00]}  Nc6 {[%clk 0:02:07]} 20. Ke2 {[%clk 0:01:55]}  b5 {[%clk 0:02:07]} 21. Rc1 {[%clk 0:01:52]}  e6 {[%clk 0:02:01]} 22. Ne1 {[%clk 0:01:48]}  b4 {[%clk 0:01:57]} 23. axb4 {[%clk 0:01:32]}  Nxb4 {[%clk 0:01:58]} 24. b3 {[%clk 0:01:30]}  cxb3 {[%clk 0:01:53]} 25. Rb2 {[%clk 0:01:26]}  Ra2 {[%clk 0:01:44]} 26. Rb1 {[%clk 0:01:15]}  Kd7 {[%clk 0:01:39]} 27. Kd1 {[%clk 0:01:14]}  Nc6 {[%clk 0:00:53]} 28. Rxb3 {[%clk 0:01:06]}  Na5 {[%clk 0:00:52]} 29. Rb5 {[%clk 0:01:01]}  Ra8 {[%clk 0:00:38]} 30. Nd3 {[%clk 0:00:51]}  Nc6 {[%clk 0:00:26]} 31. Nc5+ {[%clk 0:00:47]}  Ke8 {[%clk 0:00:24]} 32. Rb6 {[%clk 0:00:45]}  Ra1 {[%clk 0:00:21]} 33. Kc2 {[%clk 0:00:41]}  Rxb1 {[%clk 0:00:20]} 34. Kxb1 {[%clk 0:00:42]}  Na5 {[%clk 0:00:19]} 35. Nb7 {[%clk 0:00:35]}  Nxb7 {[%clk 0:00:17]} 36. Rxb7 {[%clk 0:00:35]}  Bf8 {[%clk 0:00:16]} 37. Kb2 {[%clk 0:00:32]}  Be7 {[%clk 0:00:15]} 38. h3 {[%clk 0:00:30]}  h5 {[%clk 0:00:14]} 39. Kb3 {[%clk 0:00:29]}  Rc8 {[%clk 0:00:13]} 40. Bc7 {[%clk 0:00:25]}  Kd7 {[%clk 0:00:11]} 41. Ba5+ {[%clk 0:00:17]}  Ke8 {[%clk 0:00:12]} 42. Bc7 {[%clk 0:00:14]}  g4 {[%clk 0:00:08]} 43. hxg4 {[%clk 0:00:12]}  hxg4 {[%clk 0:00:09]} 44. Ka4 {[%clk 0:00:13]}  Kd7 {[%clk 0:00:09]} 45. Bf4+ {[%clk 0:00:12]}  Ke8 {[%clk 0:00:09]} 46. Kb5 {[%clk 0:00:12]}  f6 {[%clk 0:00:08]} 47. Bc7 {[%clk 0:00:09]}  Kd7 {[%clk 0:00:08]} 48. Bf4+ {[%clk 0:00:07]}  Ke8 {[%clk 0:00:08]} 49. Rb8 {[%clk 0:00:07]}  Rxb8+ {[%clk 0:00:08]} 50. Bxb8 {[%clk 0:00:08]}  Kd7 {[%clk 0:00:09]} 51. Kb6 {[%clk 0:00:09]}  f5 {[%clk 0:00:09]} 52. Kb5 {[%clk 0:00:08]}  Bf6 {[%clk 0:00:08]} 53. g3 {[%clk 0:00:08]}  Be7 {[%clk 0:00:08]} 54. Bf4 {[%clk 0:00:08]}  Ba3 {[%clk 0:00:08]} 55. Ka4 {[%clk 0:00:03]}  Bc1 {[%clk 0:00:08]} 56. Kb3 {[%clk 0:00:01]}  Bd2 {[%clk 0:00:08]} 57. Kc2 {[%clk 0:00:02]}  Ba5 {[%clk 0:00:06]} 58. Kd3 {[%clk 0:00:02]}  Kc6 {[%clk 0:00:07]} 59. Ke2 {[%clk 0:00:02]}  Kb5 {[%clk 0:00:07]} 60. Bg5 {[%clk 0:00:02]}  Kc4 {[%clk 0:00:07]} 61. Bf6 {[%clk 0:00:03]}  Kb3 {[%clk 0:00:06]} 62. Be5 {[%clk 0:00:03]}  Kc2 {[%clk 0:00:06]} 63. Bf6 {[%clk 0:00:04]}  Bb6 {[%clk 0:00:06]} 64. Bg7 {[%clk 0:00:05]}  Ba5 {[%clk 0:00:06]} 65. Be5 {[%clk 0:00:05]}  Kb3 {[%clk 0:00:06]} 66. Bf6 {[%clk 0:00:06]}  Kc4 {[%clk 0:00:07]} 67. Be5 {[%clk 0:00:07]}  Kb5 {[%clk 0:00:08]} 68. Bf6 {[%clk 0:00:07]}  Kc6 {[%clk 0:00:08]} 69. Be5 {[%clk 0:00:08]}  Bb6 {[%clk 0:00:09]} 70. Kd3 {[%clk 0:00:08]}  Ba5 {[%clk 0:00:09]} 71. Bf4 {[%clk 0:00:08]}  Kd7 {[%clk 0:00:09]} 72. Be5 {[%clk 0:00:08]}  Kc6 {[%clk 0:00:09]} 73. Bf4 {[%clk 0:00:08]}  Kd7 {[%clk 0:00:10]} 74. Be5 {[%clk 0:00:09]}  Kc6 {[%clk 0:00:11]} 1/2-1/2


[Site "https://www.chess.com"]

[Event "Titled Tuesday Blitz January 03 Early 2023"]
[White "Ibadov, Dashgyn"]
[Black "Skliarov, Viktor"]
[WhiteFideId "24107514"]
[BlackFideId "14106736"]
[WhiteElo "2391"]
[BlackElo "2383"]
[Result "1/2-1/2"]
[Round "04"]
[TimeControl "180+2"]
[Date "2023.01.03"]
[WhiteClock "0:00:04"]
[BlackClock "0:00:04"]

1. d4 {[%clk 0:03:00]}  Nf6 {[%clk 0:02:55]} 2. c4 {[%clk 0:03:01]}  e6 {[%clk 0:02:55]} 3. Nf3 {[%clk 0:02:59]}  b6 {[%clk 0:02:54]} 4. Nc3 {[%clk 0:02:56]}  Bb4 {[%clk 0:02:53]} 5. g3 {[%clk 0:02:55]}  O-O {[%clk 0:02:49]} 6. Bg2 {[%clk 0:02:55]}  Bxc3+ {[%clk 0:02:47]} 7. bxc3 {[%clk 0:02:55]}  Bb7 {[%clk 0:02:47]} 8. O-O {[%clk 0:02:54]}  d6 {[%clk 0:02:45]} 9. Re1 {[%clk 0:02:50]}  Nbd7 {[%clk 0:02:44]} 10. Qc2 {[%clk 0:02:35]}  Be4 {[%clk 0:02:37]} 11. Qb3 {[%clk 0:02:26]}  c5 {[%clk 0:02:36]} 12. Bf1 {[%clk 0:02:23]}  Qe7 {[%clk 0:01:58]} 13. Nd2 {[%clk 0:01:59]}  Bb7 {[%clk 0:01:58]} 14. e4 {[%clk 0:01:59]}  e5 {[%clk 0:01:58]} 15. d5 {[%clk 0:01:48]}  Ne8 {[%clk 0:01:52]} 16. Qc2 {[%clk 0:01:38]}  g6 {[%clk 0:01:48]} 17. Bg2 {[%clk 0:01:33]}  Ng7 {[%clk 0:01:47]} 18. Nf1 {[%clk 0:01:29]}  f5 {[%clk 0:01:46]} 19. f4 {[%clk 0:01:18]}  Rae8 {[%clk 0:01:20]} 20. a4 {[%clk 0:01:16]}  Ba6 {[%clk 0:00:58]} 21. Qd3 {[%clk 0:01:02]}  exf4 {[%clk 0:00:50]} 22. Bxf4 {[%clk 0:00:51]}  Ne5 {[%clk 0:00:47]} 23. Bxe5 {[%clk 0:00:50]}  Qxe5 {[%clk 0:00:48]} 24. a5 {[%clk 0:00:43]}  bxa5 {[%clk 0:00:32]} 25. Rxa5 {[%clk 0:00:44]}  Bc8 {[%clk 0:00:32]} 26. Rxa7 {[%clk 0:00:42]}  f4 {[%clk 0:00:32]} 27. gxf4 {[%clk 0:00:28]}  Rxf4 {[%clk 0:00:32]} 28. Ng3 {[%clk 0:00:18]}  Ref8 {[%clk 0:00:27]} 29. Rf1 {[%clk 0:00:19]}  h5 {[%clk 0:00:26]} 30. Raa1 {[%clk 0:00:16]}  h4 {[%clk 0:00:24]} 31. Ne2 {[%clk 0:00:17]}  Rxf1+ {[%clk 0:00:20]} 32. Rxf1 {[%clk 0:00:17]}  Rxf1+ {[%clk 0:00:19]} 33. Bxf1 {[%clk 0:00:18]}  g5 {[%clk 0:00:13]} 34. Qf3 {[%clk 0:00:14]}  g4 {[%clk 0:00:12]} 35. Qf4 {[%clk 0:00:14]}  Nh5 {[%clk 0:00:07]} 36. Qxe5 {[%clk 0:00:14]}  dxe5 {[%clk 0:00:08]} 37. Nc1 {[%clk 0:00:11]}  Nf4 {[%clk 0:00:05]} 38. Nd3 {[%clk 0:00:06]}  Nxd3 {[%clk 0:00:05]} 39. Bxd3 {[%clk 0:00:07]}  Kg7 {[%clk 0:00:05]} 40. Kf2 {[%clk 0:00:07]}  Kf6 {[%clk 0:00:05]} 41. Be2 {[%clk 0:00:06]}  Kg5 {[%clk 0:00:05]} 42. Ke3 {[%clk 0:00:06]}  Bd7 {[%clk 0:00:05]} 43. Bd1 {[%clk 0:00:05]}  Kg6 {[%clk 0:00:04]} 44. Be2 {[%clk 0:00:04]}  Kg5 {[%clk 0:00:04]} 45. Bd1 {[%clk 0:00:04]}  Kg6 {[%clk 0:00:03]} 46. Be2 {[%clk 0:00:04]}  Kg5 {[%clk 0:00:04]} 1/2-1/2


[Site "https://www.chess.com"]

[Event "Titled Tuesday Blitz January 03 Early 2023"]
[White "Melaugh, Shane"]
[Black "Papp, Levente"]
[WhiteFideId "2509580"]
[BlackFideId "751243"]
[WhiteElo "2115"]
[BlackElo "2353"]
[Result "1-0"]
[Round "04"]
[TimeControl "180+2"]
[Date "2023.01.03"]
[WhiteClock "0:00:22"]
[BlackClock "0:00:04"]

1. c4 {[%clk 0:03:00]}  e6 {[%clk 0:02:57]} 2. Nc3 {[%clk 0:03:00]}  Bb4 {[%clk 0:02:53]} 3. g3 {[%clk 0:02:54]}  d5 {[%clk 0:02:52]} 4. cxd5 {[%clk 0:02:53]}  exd5 {[%clk 0:02:52]} 5. d4 {[%clk 0:02:53]}  Nf6 {[%clk 0:02:51]} 6. Qa4+ {[%clk 0:02:48]}  Nc6 {[%clk 0:02:51]} 7. Nf3 {[%clk 0:02:49]}  O-O {[%clk 0:02:49]} 8. Bg2 {[%clk 0:02:48]}  Ne4 {[%clk 0:02:47]} 9. Qc2 {[%clk 0:02:48]}  Bf5 {[%clk 0:02:46]} 10. Qb3 {[%clk 0:02:45]}  a5 {[%clk 0:02:26]} 11. O-O {[%clk 0:02:43]}  Bxc3 {[%clk 0:02:16]} 12. bxc3 {[%clk 0:02:36]}  a4 {[%clk 0:02:04]} 13. Qxb7 {[%clk 0:02:24]}  Qd7 {[%clk 0:02:04]} 14. Qb2 {[%clk 0:02:17]}  a3 {[%clk 0:01:56]} 15. Qb3 {[%clk 0:02:00]}  Rfb8 {[%clk 0:01:52]} 16. Qd1 {[%clk 0:01:59]}  Nxc3 {[%clk 0:01:47]} 17. Qd2 {[%clk 0:02:00]}  Ne4 {[%clk 0:01:43]} 18. Qf4 {[%clk 0:01:59]}  Bh3 {[%clk 0:00:57]} 19. Bxh3 {[%clk 0:01:40]}  Qxh3 {[%clk 0:00:58]} 20. Qxc7 {[%clk 0:01:32]}  Rc8 {[%clk 0:00:57]} 21. Qf4 {[%clk 0:01:29]}  Nc3 {[%clk 0:00:47]} 22. Re1 {[%clk 0:01:17]}  Re8 {[%clk 0:00:46]} 23. e3 {[%clk 0:01:11]}  Ne4 {[%clk 0:00:38]} 24. Bd2 {[%clk 0:00:55]}  Qd7 {[%clk 0:00:23]} 25. Rac1 {[%clk 0:00:50]}  g5 {[%clk 0:00:18]} 26. Nxg5 {[%clk 0:00:44]}  Nxd2 {[%clk 0:00:18]} 27. Rxc6 {[%clk 0:00:44]}  Ne4 {[%clk 0:00:08]} 28. Rc7 {[%clk 0:00:36]}  Qxc7 {[%clk 0:00:04]} 29. Qxc7 {[%clk 0:00:32]}  Nxg5 {[%clk 0:00:05]} 30. Qf4 {[%clk 0:00:30]}  Ne4 {[%clk 0:00:03]} 31. Rc1 {[%clk 0:00:30]}  Rec8 {[%clk 0:00:02]} 32. Rc7 {[%clk 0:00:23]}  Rxc7 {[%clk 0:00:02]} 33. Qxc7 {[%clk 0:00:24]}  Ra6 {[%clk 0:00:02]} 34. f3 {[%clk 0:00:23]}  Re6 {[%clk 0:00:02]} 35. fxe4 {[%clk 0:00:23]}  Rxe4 {[%clk 0:00:03]} 36. Qd8+ {[%clk 0:00:22]}  Kg7 {[%clk 0:00:03]} 37. Qxd5 {[%clk 0:00:23]}  Re6 {[%clk 0:00:04]} 38. Qa5 {[%clk 0:00:22]}  Rxe3 {[%clk 0:00:04]} 39. Qg5+ {[%clk 0:00:22]} 1-0


[Site "https://www.chess.com"]

[Event "Titled Tuesday Blitz January 03 Early 2023"]
[White "Mekhane, Adam"]
[Black "De La Colina, Nicolas"]
[WhiteFideId "36050601"]
[BlackFideId "30946921"]
[WhiteElo "2280"]
[BlackElo "2244"]
[Result "0-1"]
[Round "04"]
[TimeControl "180+2"]
[Date "2023.01.03"]
[WhiteClock "0:00:01"]
[BlackClock "0:00:04"]

1. e4 {[%clk 0:02:59]}  c5 {[%clk 0:02:59]} 2. Nf3 {[%clk 0:02:59]}  Nc6 {[%clk 0:02:59]} 3. b3 {[%clk 0:02:58]}  g6 {[%clk 0:02:56]} 4. Bb2 {[%clk 0:02:58]}  Nf6 {[%clk 0:02:57]} 5. e5 {[%clk 0:02:58]}  Nd5 {[%clk 0:02:56]} 6. Bc4 {[%clk 0:02:57]}  Nc7 {[%clk 0:02:43]} 7. Bxf7+ {[%clk 0:02:54]}  Kxf7 {[%clk 0:02:32]} 8. Ng5+ {[%clk 0:02:42]}  Kg8 {[%clk 0:02:24]} 9. Qf3 {[%clk 0:02:42]}  Qe8 {[%clk 0:02:07]} 10. Nc3 {[%clk 0:02:07]}  Bg7 {[%clk 0:01:46]} 11. Nd5 {[%clk 0:02:04]}  Nxd5 {[%clk 0:01:30]} 12. Qxd5+ {[%clk 0:02:04]}  e6 {[%clk 0:01:31]} 13. Qxc5 {[%clk 0:02:05]}  b6 {[%clk 0:01:31]} 14. Qe3 {[%clk 0:02:01]}  Bb7 {[%clk 0:01:30]} 15. O-O-O {[%clk 0:01:35]}  Rc8 {[%clk 0:01:29]} 16. Ne4 {[%clk 0:01:33]}  Qe7 {[%clk 0:01:15]} 17. Nd6 {[%clk 0:01:31]}  Rb8 {[%clk 0:01:15]} 18. f4 {[%clk 0:01:25]}  Nd8 {[%clk 0:01:03]} 19. Ba3 {[%clk 0:01:15]}  Nf7 {[%clk 0:00:57]} 20. Kb2 {[%clk 0:01:08]}  Qd8 {[%clk 0:00:50]} 21. Nxb7 {[%clk 0:01:03]}  Rxb7 {[%clk 0:00:50]} 22. g4 {[%clk 0:01:04]}  Bf8 {[%clk 0:00:38]} 23. Bxf8 {[%clk 0:01:00]}  Kxf8 {[%clk 0:00:39]} 24. f5 {[%clk 0:00:59]}  Qg5 {[%clk 0:00:37]} 25. Qc3 {[%clk 0:00:51]}  Rb8 {[%clk 0:00:37]} 26. Qc7 {[%clk 0:00:46]}  Rd8 {[%clk 0:00:29]} 27. Rhf1 {[%clk 0:00:39]}  Kg7 {[%clk 0:00:18]} 28. d4 {[%clk 0:00:25]}  Qxg4 {[%clk 0:00:13]} 29. fxe6 {[%clk 0:00:19]}  Qxe6 {[%clk 0:00:11]} 30. Rf6 {[%clk 0:00:19]}  Qe7 {[%clk 0:00:10]} 31. Rdf1 {[%clk 0:00:19]}  Rhf8 {[%clk 0:00:08]} 32. Qxa7 {[%clk 0:00:14]}  Ng5 {[%clk 0:00:07]} 33. Qxb6 {[%clk 0:00:13]}  Ne6 {[%clk 0:00:02]} 34. d5 {[%clk 0:00:11]}  Ng5 {[%clk 0:00:02]} 35. Qe3 {[%clk 0:00:10]}  Nf7 {[%clk 0:00:02]} 36. c3 {[%clk 0:00:01]}  Kg8 {[%clk 0:00:03]} 37. Qf4 {[%clk 0:00:01]}  Rde8 {[%clk 0:00:03]} 38. e6 {[%clk 0:00:01]}  dxe6 {[%clk 0:00:04]} 39. Rxe6 {[%clk 0:00:01]}  Qd7 {[%clk 0:00:04]} 0-1


[Site "https://www.chess.com"]